bitfinex-derivatives/quotes_BNBF0:USTF0_20250315
["timestamp","ask_amount","ask_price","bid_price","bid_amount"]
[1742055526797,2.51459126,607.36,604.44,0.30355132]
[1742055527097,2.51459126,607.31,604.44,0.30355132]
[1742055527497,0.32938076,607.2,604.44,0.30355132]
[1742055527891,0.32938076,607.2,604.57,0.33081363]
[1742055528092,0.32938076,607.2,604.58,0.30355132]
[1742055528291,0.32938076,607.2,604.71,0.33073704]
[1742055529498,0.32938076,607.2,604.72,2.25753721]
[1742055529696,0.32938076,607.2,604.84,0.33066596]
[1742055530196,0.32938076,607.2,604.85,0.30353558]
[1742055530498,0.28729346,607.19,604.87,0.33064956]
[1742055530794,0.32944044,607.09,604.88,2.142]
[1742055531000,0.32944044,607.09,604.9,0.33063316]
[1742055531198,2.51459126,606.96,604.9,0.33063316]
[1742055531398,0.32952186,606.94,604.9,0.33063316]
[1742055532797,0.32952186,606.94,604.91,0.30351685]
[1742055532995,0.32952186,606.94,604.93,0.33061676]
[1742055533201,0.32952186,606.94,604.94,0.30351685]
[1742055533500,0.32952186,606.94,604.96,0.33060037]
[1742055534301,0.28729939,606.93,604.96,0.33060037]
[1742055534600,0.32953272,606.92,604.96,0.33060037]
[1742055537397,0.28730413,606.91,604.96,0.33060037]
[1742055537594,0.32954358,606.9,604.96,0.33060037]
[1742055540104,0.32954358,606.9,604.97,0.206]
[1742055540306,0.28732311,606.89,604.99,0.33058397]
[1742055540508,0.32955444,606.88,604.99,0.33058397]
[1742055544909,0.32955444,606.88,605.0,2.368]
[1742055545108,0.32955444,606.88,605.01,0.33057304]
[1742055548316,2.51459126,606.77,605.01,0.33057304]
[1742055548614,0.32962505,606.75,605.01,0.33057304]
[1742055550419,2.51459126,606.71,605.01,0.33057304]
[1742055550616,0.32965765,606.69,605.01,0.33057304]
[1742055552414,0.28747026,606.68,605.01,0.33057304]
[1742055552618,0.32967395,606.66,605.02,2.176]
[1742055552818,0.32967395,606.66,605.02,5.923]
[1742055554820,0.32967395,606.66,605.02,8.343]
[1742055555022,2.51459126,606.56,605.02,8.343]
[1742055555223,0.32973917,606.54,605.02,8.343]
[1742055555623,0.32973917,606.54,605.03,0.33056212]
[1742055559126,0.32973917,606.54,605.03,2.35456212]
[1742055562330,0.32973917,606.54,605.03,3.96156212]
[1742055566932,0.32973917,606.54,605.03,5.68256212]
[1742055570740,0.32973917,606.54,605.03,7.48856212]
[1742055570936,0.32973917,606.54,605.03,9.21056212]
[1742055572539,0.32973917,606.54,605.03,9.41656212]
[1742055572737,0.32973917,606.54,605.03,11.55256212]
[1742055576449,0.28741565,606.53,605.03,11.55256212]
[1742055576650,0.32975548,606.51,605.03,11.55256212]
[1742055578549,0.32975548,606.51,605.03,13.55256212]
[1742055582551,2.51459126,606.5,605.03,13.55256212]
[1742055582750,0.32977179,606.48,605.03,13.55256212]
[1742055585351,2.51459126,606.36,605.03,13.55256212]
[1742055585548,0.3298425,606.35,605.03,13.55256212]
[1742055588347,0.28749282,606.34,605.03,13.55256212]
[1742055588551,0.32985338,606.33,605.03,13.55256212]
[1742055588952,0.32985338,606.33,605.03,13.222]
[1742055591355,0.28752489,606.32,605.03,13.222]
[1742055591657,0.3298697,606.3,605.03,13.222]
[1742055597260,0.28753202,606.29,605.03,13.222]
[1742055597458,0.32988602,606.27,605.03,13.222]
[1742055598868,0.32988602,606.27,605.03,13.21236396]
[1742055599062,0.32988602,606.27,605.03,11.198]
[1742055600362,0.28755459,606.26,605.03,11.198]
[1742055600565,0.32990234,606.24,605.03,11.198]
[1742055603268,0.28756053,606.23,605.03,11.198]
[1742055603569,0.32991867,606.21,605.03,11.198]
[1742055608266,0.32991867,606.21,605.03,11.198]
[1742055609372,0.28754271,606.2,605.03,11.198]
[1742055609570,0.32992956,606.19,605.03,11.198]
[1742055629689,0.28744058,606.18,605.03,11.198]
[1742055629890,0.32994044,606.17,605.03,11.198]
[1742055648303,0.32994044,606.17,605.04,0.33055665]
[1742055649506,5.21010023,606.62,605.04,0.33055665]
[1742055649700,4.74161878,606.61,605.04,0.33055665]
[1742055649902,2.4681828,606.6,605.04,2.28355665]
[1742055650104,0.32971199,606.59,605.04,2.28355665]
[1742055650803,2.51459126,606.53,605.04,2.28355665]
[1742055651002,0.32975004,606.52,605.04,2.28355665]
[1742055651203,0.32975004,606.52,605.04,2.48955665]
[1742055651403,0.32975004,606.52,605.04,4.15855665]
[1742055652003,0.32975004,606.52,605.04,6.09355665]
[1742055652200,0.32975004,606.52,605.04,12.20955665]
[1742055652702,0.32975004,606.52,605.04,14.32855665]
[1742055655102,2.51459126,606.45,605.04,14.32855665]
[1742055656609,0.32975004,606.52,605.04,14.32855665]
[1742055678436,0.28737412,606.51,605.04,14.32855665]
[1742055678734,0.32976092,606.5,605.04,14.32855665]
[1742055687437,0.28737887,606.49,605.04,14.32855665]
[1742055688131,0.32977179,606.48,605.04,14.32855665]
[1742055690335,0.28741803,606.47,605.04,14.32855665]
[1742055690537,0.32978267,606.46,605.04,14.32855665]
[1742055712345,2.13756971,607.2,605.04,14.32855665]
[1742055712647,0.32939161,607.18,605.04,14.32855665]
[1742055713545,0.28725314,607.17,605.04,14.32855665]
[1742055713851,0.32940788,607.15,605.04,14.32855665]
[1742055714350,0.2872567,607.14,605.04,14.32855665]
[1742055714549,0.32942416,607.12,605.04,14.32855665]
[1742055716443,2.51459126,607.09,605.04,14.32855665]
[1742055716648,0.32945129,607.07,605.04,14.32855665]
[1742055717347,0.28725196,607.06,605.04,14.32855665]
[1742055717545,0.32946758,607.04,605.04,14.32855665]
[1742055725256,2.51459126,606.64,605.07,0.33054026]
[1742055726151,0.32946758,607.04,605.07,0.33054026]
[1742055726152,2.51459126,606.87,605.07,0.33054026]
[1742055726758,2.51459126,606.87,605.08,1.754]
[1742055726955,2.51459126,606.87,605.1,0.33052388]
[1742055727561,2.51459126,606.87,605.11,4.002]
[1742055727761,2.51459126,606.87,605.11,7.994]
[1742055727961,2.51459126,606.92,605.13,0.33050749]
[1742055728160,0.32953815,606.91,605.13,0.33050749]
[1742055728557,0.28729346,606.9,605.13,0.33050749]
[1742055728761,0.32954901,606.89,605.13,0.33050749]
[1742055732366,0.28731836,606.88,605.13,0.33050749]
[1742055733566,2.51459126,606.69,605.13,0.33050749]
[1742055733868,0.32966851,606.67,605.13,0.33050749]
[1742055735461,0.28733378,606.66,605.13,0.33050749]
[1742055736762,2.51459126,606.55,605.13,0.33050749]
[1742055738064,0.28733378,606.66,605.13,0.33050749]
[1742055738367,0.32966851,606.67,605.13,0.33050749]
[1742055740966,0.32966851,606.67,605.14,1.949]
[1742055741168,0.32966851,606.67,605.16,0.3304911]
[1742055744463,0.28731599,606.66,605.16,0.3304911]
[1742055744768,0.32967938,606.65,605.16,0.3304911]
[1742055747464,0.28733615,606.64,605.16,0.3304911]
[1742055748168,0.28733615,606.64,605.16,2.5894911]
[1742055748566,0.28733615,606.64,605.16,4.5354911]
[1742055750271,0.32967938,606.65,605.16,4.5354911]
[1742055753771,0.32967938,606.65,605.16,4.7404911]
[1742055756381,0.32967938,606.65,605.16,6.5174911]
[1742055757881,0.32967938,606.65,605.16,8.8974911]
[1742055759077,0.32967938,606.65,605.16,11.0344911]
[1742055760178,2.51459126,606.52,605.16,11.0344911]
[1742055762387,2.51459126,606.59,605.16,11.0344911]
[1742055764986,2.51459126,606.61,605.16,11.0344911]
[1742055766282,0.32967938,606.65,605.16,11.0344911]
[1742055771395,0.28732666,606.64,605.16,11.0344911]
[1742055771598,0.32969025,606.63,605.16,11.0344911]
[1742055774392,0.28734327,606.62,605.16,11.0344911]
[1742055777202,0.32969025,606.63,605.16,11.0344911]
[1742055777396,0.28734446,606.61,605.16,11.0344911]
[1742055779896,0.32970656,606.6,605.16,11.0344911]
[1742055780503,0.28735869,606.59,605.16,11.0344911]
[1742055780704,0.32971743,606.58,605.16,11.0344911]
[1742055785508,0.32971743,606.58,605.16,13.3734911]
[1742055791611,0.32971743,606.58,605.16,15.2374911]
[1742055798513,2.51459126,606.82,605.16,15.2374911]
[1742055800112,2.51459126,606.86,605.16,15.2374911]
[1742055800312,0.32957073,606.85,605.16,15.2374911]
[1742055803612,0.28723417,606.84,605.16,15.2374911]
[1742055803916,0.32958159,606.83,605.16,15.2374911]
[1742055815722,0.32958159,606.83,605.17,0.30337418]
[1742055815922,0.32958159,606.83,605.19,0.33047472]
[1742055816721,2.51459126,606.81,605.19,0.33047472]
[1742055817124,2.84418371,606.81,605.19,0.33047472]
[1742055818627,2.84418371,606.81,605.2,3.815]
[1742055818830,0.32959245,606.81,605.22,0.33045834]
[1742055819528,0.32959245,606.81,605.23,0.204]
[1742055819722,0.32959245,606.81,605.25,0.33044196]
[1742055827835,0.32959245,606.81,605.26,1.749]
[1742055828134,0.32959245,606.81,605.28,0.33042558]
[1742055832242,2.51459126,607.43,605.28,0.33042558]
[1742055832538,0.32926688,607.41,605.28,0.33042558]
[1742055834039,0.32926688,607.41,605.28,0.53442558]
[1742055835242,2.51459126,607.12,605.28,0.53442558]
[1742055835439,0.32942959,607.11,605.28,0.53442558]
[1742055836140,0.32942959,607.11,605.28,2.75042558]
[1742055836545,2.51459126,606.93,605.28,2.75042558]
[1742055836745,0.32953272,606.92,605.28,2.75042558]
[1742055837540,0.28721876,606.91,605.28,2.75042558]
[1742055839845,0.28721876,606.91,605.28,4.45242558]
[1742055841141,0.28721876,606.91,605.28,6.92042558]
[1742055843249,0.32953272,606.92,605.28,6.92042558]
[1742055845550,0.32953272,606.92,605.28,8.50142558]
[1742055847951,0.32953272,606.92,605.29,0.30326206]
[1742055848251,0.32953272,606.92,605.31,0.33040921]
[1742055849553,0.32953272,606.92,605.32,0.30325915]
[1742055850347,0.32953272,606.92,605.31,0.33040921]
[1742055850947,0.32953272,606.92,605.31,2.04640921]
[1742055851746,0.32953272,606.92,605.31,4.38740921]
[1742055852553,2.51459126,607.44,605.31,4.38740921]
[1742055852751,0.32925604,607.43,605.31,4.38740921]
[1742055853452,0.32925604,607.43,605.41,0.33035463]
[1742055854247,0.32925604,607.43,605.42,0.30319184]
[1742055855250,0.32925604,607.43,605.52,0.33029462]
[1742055855853,0.32925604,607.43,605.53,0.30318658]
[1742055856055,0.32925604,607.43,605.55,0.33027825]
[1742055856649,2.51459126,607.38,605.55,0.33027825]
[1742055857851,2.51459126,607.38,605.56,0.30307108]
[1742055858049,2.51459126,607.38,605.55,0.33027825]
[1742055858050,2.51459126,607.38,605.58,0.33026189]
[1742055859650,3.06302172,607.62,605.58,0.33026189]
[1742055859850,0.32916392,607.6,605.58,0.33026189]
[1742055861652,0.32916392,607.6,605.59,2.532]
[1742055862054,0.32916392,607.6,605.61,0.33024553]
[1742055864149,0.32916392,607.6,605.62,2.044]
[1742055864356,0.32916392,607.6,605.64,0.33022917]
[1742055866056,0.32916392,607.6,605.65,2.363]
[1742055866657,0.32916392,607.6,605.66,0.30311678]
[1742055867458,0.32916392,607.6,605.66,2.14811678]
[1742055867655,0.32916392,607.6,605.66,1.845]
[1742055868562,0.32916392,607.6,605.68,0.33020737]
[1742055869261,0.32916392,607.6,605.69,0.30312395]
[1742055869455,0.32916392,607.6,605.71,0.33019101]
[1742055869857,0.32916392,607.6,605.72,0.30308553]
[1742055870056,0.32916392,607.6,605.74,0.33017466]
[1742055870363,0.32916392,607.6,605.75,0.30308553]
[1742055870565,0.32916392,607.6,605.77,0.33015831]
[1742055870761,0.32916392,607.6,605.78,0.30308553]
[1742055870957,0.32916392,607.6,605.8,0.33014196]
[1742055871161,0.32916392,607.6,605.81,0.30308553]
[1742055871366,0.32916392,607.6,605.83,0.33012561]
[1742055871661,0.32916392,607.6,605.84,0.30308553]
[1742055872261,2.51459126,607.63,605.86,0.33010926]
[1742055872465,2.51459126,607.63,605.87,0.30308553]
[1742055872766,2.51459126,607.63,605.89,0.33009292]
[1742055872965,2.51459126,607.63,605.9,0.30308553]
[1742055873165,2.51459126,607.63,605.92,0.33007657]
[1742055873468,2.51459126,608.15,605.93,0.30308553]
[1742055873666,0.32887704,608.13,606.04,0.33001122]
[1742055875568,0.28677616,608.12,606.04,0.33001122]
[1742055875769,0.32888786,608.11,606.04,0.33001122]
[1742055881172,0.32888786,608.11,606.05,0.30291225]
[1742055881673,0.32888786,608.11,606.15,0.32995133]
[1742055881866,0.32888786,608.11,606.16,0.30291225]
[1742055882068,0.32888786,608.11,606.15,0.32995133]
[1742055882468,0.28680688,608.1,606.15,0.32995133]
[1742055882673,0.28680688,608.1,606.15,2.50095133]
[1742055882868,0.28680688,608.1,606.15,5.55195133]
[1742055883470,0.28680688,608.1,606.15,5.75595133]
[1742055883667,0.32890409,608.08,606.15,5.75595133]
[1742055884774,0.32890409,608.08,606.15,8.10495133]
[1742055885574,0.28678325,608.07,606.15,10.19195133]
[1742055885770,0.32892031,608.05,606.15,10.19195133]
[1742055886775,2.51459126,608.04,606.15,12.43895133]
[1742055886975,0.32893654,608.02,606.15,12.43895133]
[1742055888576,0.28675962,608.01,606.15,12.43895133]
[1742055888769,0.32894736,608.0,606.15,12.43895133]
[1742055891271,0.32894736,608.0,606.15,14.85895133]
[1742055891471,0.28674898,607.99,606.15,14.85895133]
[1742055891872,0.28674898,607.99,606.15,17.20195133]
[1742055893178,2.80134024,607.99,606.15,17.20195133]
[1742055894280,2.51459126,607.99,606.15,17.20195133]
[1742055895584,2.51459126,607.99,606.16,0.30287315]
[1742055895784,0.32894736,608.0,606.18,0.329935]
[1742055899588,0.28671827,607.99,606.18,0.329935]
[1742055900288,0.28671827,607.99,606.18,2.376935]
[1742055901289,0.28671827,607.99,606.18,4.771935]
[1742055902591,0.28671827,607.99,606.18,6.966935]
[1742055903386,0.32894736,608.0,606.18,6.966935]
[1742055903588,0.28673244,607.98,606.18,6.966935]
[1742055905292,0.28673244,607.98,606.18,8.661935]
[1742055906187,0.32894736,608.0,606.18,8.661935]
[1742055908589,0.28673126,607.99,606.18,8.661935]
[1742055909195,0.32894736,608.0,606.18,8.661935]
[1742055911695,0.286723,607.99,606.18,8.661935]
[1742055914097,0.286723,607.99,606.18,8.864935]
[1742055915298,0.32894736,608.0,606.18,8.864935]
[1742055917597,0.28672654,607.99,606.18,8.864935]
[1742055917794,0.32895818,607.98,606.18,10.958935]
[1742055920603,0.2867478,607.97,606.18,10.958935]
[1742055920803,0.32896901,607.96,606.18,10.958935]
[1742055923705,2.51459126,607.94,606.18,10.958935]
[1742055923912,0.32898524,607.93,606.18,10.958935]
[1742055924610,0.2868057,607.92,606.18,10.958935]
[1742055924811,0.32900148,607.9,606.18,10.958935]
[1742055925008,0.32900148,607.9,606.18,12.442935]
[1742055926113,2.51459126,607.75,606.18,12.442935]
[1742055926409,0.32908809,607.74,606.18,12.442935]
[1742055927505,0.2868589,607.73,606.18,12.442935]
[1742055927911,0.32909892,607.72,606.18,12.442935]
[1742055929516,0.32909892,607.72,606.18,14.048935]
[1742055930613,0.28691566,607.71,606.18,14.048935]
[1742055930913,0.32911517,607.69,606.18,14.048935]
[1742055931114,2.51459126,607.67,606.18,14.048935]
[1742055931314,0.32913683,607.65,606.18,14.048935]
[1742055936512,0.28690856,607.64,606.18,14.048935]
[1742055937510,0.32915308,607.62,606.18,14.048935]
[1742055948534,0.2868991,607.61,606.18,14.048935]
[1742055949132,0.32916934,607.59,606.18,14.048935]
[1742055951735,2.51459126,607.48,606.18,14.048935]
[1742055951934,0.32923978,607.46,606.18,14.048935]
[1742055953737,2.51459126,607.44,606.18,14.048935]
[1742055953930,0.32925604,607.43,606.18,14.048935]
[1742055954537,0.28700202,607.42,606.18,14.048935]
[1742055954729,0.28700202,607.42,606.18,13.719]
[1742055955633,0.3292723,607.4,606.18,13.719]
[1742055955838,2.51459126,607.21,606.18,13.719]
[1742055956137,0.32938076,607.2,606.18,13.719]
[1742055957540,0.28702688,607.19,606.18,13.719]
[1742055957739,0.32939161,607.18,606.18,13.719]
[1742055958836,2.51459126,607.11,606.18,13.719]
[1742055959034,0.32943501,607.1,606.18,13.719]
[1742055976356,2.51459126,607.44,606.18,13.719]
[1742055977049,2.51459126,607.5,606.18,13.719]
[1742055977253,0.32922352,607.49,606.18,13.719]
[1742055977656,0.28692394,607.48,606.18,13.719]
[1742055977857,0.32923436,607.47,606.18,13.719]
[1742055978260,2.51459126,607.31,606.18,13.719]
[1742055979860,2.51459126,607.35,606.18,13.719]
[1742055982354,2.51459126,607.35,606.19,0.32992956]
[1742055982563,0.32923436,607.47,606.19,0.32992956]
[1742055984062,0.28695233,607.46,606.19,0.32992956]
[1742055984364,2.84382562,607.47,606.19,0.32992956]
[1742055985364,2.84382562,607.47,606.2,1.645]
[1742055985565,2.84382562,607.47,606.21,3.53]
[1742055985766,0.32923436,607.47,606.21,3.53]
[1742055985960,0.32923436,607.47,606.22,2.248]
[1742055986265,0.32923436,607.47,606.22,4.212]
[1742055986666,0.32923436,607.47,606.23,3.865]
[1742055988560,0.32923436,607.47,606.24,0.32990234]
[1742055990164,2.51459126,608.15,606.24,0.32990234]
[1742055990361,0.32887704,608.13,606.24,0.32990234]
[1742055991166,2.45765765,608.13,606.24,0.32990234]
[1742055991365,0.32887704,608.13,606.24,0.32990234]
[1742055992765,2.51459126,608.03,606.24,0.32990234]
[1742055992965,0.32893654,608.02,606.24,0.32990234]
[1742055996569,0.28672181,608.01,606.24,0.32990234]
[1742055996768,0.32894736,608.0,606.24,0.32990234]
[1742055999572,0.28674426,607.99,606.24,0.32990234]
[1742055999970,0.32895818,607.98,606.24,0.32990234]
[1742056002269,0.32895818,607.98,606.25,2.165]
[1742056002470,0.32895818,607.98,606.27,0.32988602]
[1742056004371,0.32895818,607.98,606.27,1.99088602]
[1742056005771,0.28673953,607.97,606.27,1.99088602]
[1742056005970,0.32896901,607.96,606.27,1.99088602]
[1742056008070,0.32896901,607.96,606.27,3.58988602]
[1742056008471,0.28677025,607.95,606.27,3.58988602]
[1742056008673,0.32897983,607.94,606.27,3.58988602]
[1742056010174,2.51459126,607.92,606.27,3.58988602]
[1742056010373,0.32900148,607.9,606.27,3.58988602]
[1742056010576,0.32900148,607.9,606.27,5.58288602]
[1742056011380,0.32900148,607.9,606.27,5.78488602]
[1742056013874,0.32900148,607.9,606.27,7.85688602]
[1742056014078,2.51459126,607.88,606.27,7.85688602]
[1742056014577,0.28675489,607.87,606.27,7.85688602]
[1742056016682,0.28675489,607.87,606.27,9.62488602]
[1742056017284,0.32900148,607.9,606.27,9.62488602]
[1742056017687,0.28675016,607.86,606.27,9.62488602]
[1742056020482,0.32900148,607.9,606.27,9.62488602]
[1742056020681,0.28675016,607.85,606.27,9.62488602]
[1742056023384,0.32900148,607.9,606.27,9.62488602]
[1742056027194,0.32900148,607.9,606.27,9.62488602]
[1742056029093,2.51459126,607.89,606.27,9.62488602]
[1742056029490,2.51459126,607.89,606.27,11.27788602]
[1742056030494,2.51459126,607.87,606.27,11.27788602]
[1742056032497,0.32900148,607.9,606.27,11.27788602]
[1742056042408,0.32900148,607.9,606.27,13.22988602]
[1742056061635,0.2867289,607.89,606.27,13.22988602]
[1742056062035,0.3290123,607.88,606.27,13.22988602]
[1742056062635,2.51459126,607.78,606.27,13.22988602]
[1742056062932,0.32907185,607.77,606.27,13.22988602]
[1742056065638,0.28682461,607.76,606.27,13.22988602]
[1742056066040,2.51459126,607.66,606.27,13.22988602]
[1742056066240,0.32913683,607.65,606.27,13.22988602]
[1742056085451,2.13183756,608.39,606.27,13.22988602]
[1742056085652,0.3287473,608.37,606.27,13.22988602]
[1742056086547,0.28669229,608.36,606.27,13.22988602]
[1742056086752,0.32876352,608.34,606.27,13.22988602]
[1742056088148,2.51459126,608.21,606.27,13.22988602]
[1742056088351,0.3288446,608.19,606.27,13.22988602]
[1742056089657,0.28670764,608.18,606.27,13.22988602]
[1742056089953,0.32886082,608.16,606.27,13.22988602]
[1742056090861,2.51459126,608.15,606.27,13.22988602]
[1742056091756,0.32887164,608.14,606.27,13.22988602]
[1742056092955,2.51459126,608.09,606.27,13.22988602]
[1742056093663,0.32890409,608.08,606.27,13.22988602]
[1742056094560,6.86227928,608.08,606.27,13.22988602]
[1742056094756,2.41856764,608.07,606.27,13.22988602]
[1742056094961,2.51459126,608.05,606.27,13.22988602]
[1742056095162,0.32892572,608.04,606.27,13.22988602]
[1742056095661,0.28673481,608.03,606.27,13.22988602]
[1742056095863,0.32893654,608.02,606.27,13.22988602]
[1742056096564,2.4607741,608.02,606.27,13.22988602]
[1742056096760,6.86231173,608.02,606.27,13.22988602]
[1742056096961,2.13183756,608.01,606.27,13.22988602]
[1742056097161,0.32894736,608.0,606.27,13.22988602]
[1742056098360,6.8630434,608.0,606.27,13.22988602]
[1742056098566,2.41931212,607.99,606.27,13.22988602]
[1742056098766,0.32895818,607.98,606.27,13.22988602]
[1742056099669,2.46151659,607.98,606.27,13.22988602]
[1742056099867,6.86305422,607.98,606.27,13.22988602]
[1742056100068,2.13255841,607.97,606.27,13.22988602]
[1742056100261,2.51459126,607.9,606.27,13.22988602]
[1742056100461,0.32900689,607.89,606.27,13.22988602]
[1742056101568,0.28679979,607.88,606.27,13.22988602]
[1742056101764,0.32901771,607.87,606.27,13.22988602]
[1742056101968,2.51459126,607.61,606.27,13.22988602]
[1742056103762,2.51459126,607.64,606.27,13.22988602]
[1742056105571,2.51459126,607.67,606.27,13.22988602]
[1742056106766,0.28682461,607.66,606.27,13.22988602]
[1742056107469,2.51459126,607.67,606.27,13.22988602]
[1742056107666,0.28682461,607.65,606.27,13.22988602]
[1742056113373,2.51459126,607.71,606.27,13.22988602]
[1742056113576,0.28681988,607.64,606.27,13.22988602]
[1742056113774,0.32914767,607.63,606.27,13.22988602]
[1742056124777,0.28684944,607.62,606.27,13.22988602]
[1742056125080,0.3291585,607.61,606.27,13.22988602]
[1742056125677,0.28688254,607.6,606.27,13.22988602]
[1742056125880,0.32916934,607.59,606.27,13.22988602]
[1742056129690,0.32916934,607.59,606.27,12.9]
[1742056130494,2.8437606,607.59,606.27,12.9]
[1742056131601,0.28691447,607.58,606.27,12.9]
[1742056131798,6.82374359,607.58,606.27,12.9]
[1742056131998,2.13243434,607.57,606.27,12.9]
[1742056132195,0.32918559,607.56,606.27,12.9]
[1742056132395,2.51459126,607.37,606.27,12.9]
[1742056133092,2.84387983,607.37,606.27,12.9]
[1742056133295,0.32929399,607.36,606.27,12.9]
[1742056134701,0.28692157,607.35,606.27,12.9]
[1742056137400,0.32929399,607.36,606.27,12.9]
[1742056138307,0.32929399,607.36,606.28,0.32988058]
[1742056141308,0.32929399,607.36,606.28,3.80188058]
[1742056141501,2.51459126,607.53,606.28,5.76588058]
[1742056141701,2.51459126,607.53,606.28,9.85288058]
[1742056142208,2.51459126,608.0,606.28,12.05788058]
[1742056142402,0.32895818,607.98,606.28,12.05788058]
[1742056142605,0.32895818,607.98,606.28,13.65188058]
[1742056143608,0.28680216,607.97,606.28,13.65188058]
[1742056143809,0.32897442,607.95,606.28,13.65188058]
[1742056144908,2.51459126,607.58,606.28,13.65188058]
[1742056145807,2.51459126,607.63,606.28,13.65188058]
[1742056147511,2.51459126,607.64,606.28,13.65188058]
[1742056149205,0.32897442,607.95,606.28,13.65188058]
[1742056153913,2.51459126,607.93,606.28,13.65188058]
[1742056154112,0.32899065,607.92,606.28,13.65188058]
[1742056157713,0.2867797,607.91,606.28,13.65188058]
[1742056158016,0.32900689,607.89,606.28,13.65188058]
[1742056159622,2.51459126,607.87,606.28,13.65188058]
[1742056159815,0.32902313,607.86,606.28,13.65188058]
[1742056161420,2.51459126,607.78,606.28,13.65188058]
[1742056161620,0.32907185,607.77,606.28,13.65188058]
[1742056164719,0.28682343,607.76,606.28,13.65188058]
[1742056165126,0.32908268,607.75,606.28,13.65188058]
[1742056173127,2.51459126,607.66,606.28,13.65188058]
[1742056173428,2.84372268,607.66,606.28,13.65188058]
[1742056174830,2.51459126,607.59,606.28,13.65188058]
[1742056176930,2.51459126,607.58,606.28,13.65188058]
[1742056179728,2.51459126,607.61,606.28,13.65188058]
[1742056182431,0.32913142,607.66,606.28,13.65188058]
[1742056182432,2.51459126,607.65,606.28,13.65188058]
[1742056184030,0.32913142,607.66,606.28,13.65188058]
[1742056186834,2.51459126,607.75,606.28,13.65188058]
[1742056187230,2.51459126,607.65,606.28,13.65188058]
[1742056188932,2.51459126,607.83,606.28,13.65188058]
[1742056191235,2.51459126,607.82,606.28,13.65188058]
[1742056192929,2.51459126,607.81,606.28,13.65188058]
[1742056195130,3.07210644,608.09,606.28,13.65188058]
[1742056195131,2.51459126,607.77,606.28,13.65188058]
[1742056196631,2.84366311,607.77,606.28,13.65188058]
[1742056196831,0.32907185,607.77,606.28,13.65188058]
[1742056199437,2.51459126,607.66,606.28,13.65188058]
[1742056199636,0.32913683,607.65,606.28,13.65188058]
[1742056200639,0.28687427,607.64,606.28,13.65188058]
[1742056200939,0.32914767,607.63,606.28,13.65188058]
[1742056201941,0.28688491,607.62,606.28,13.65188058]
[1742056202941,2.51459126,607.41,606.28,13.65188058]
[1742056205145,2.13262264,607.57,606.28,13.65188058]
[1742056205146,4.40283193,607.56,606.28,13.65188058]
[1742056205340,6.53545457,607.55,606.28,13.65188058]
[1742056205543,6.53545457,607.54,606.28,13.65188058]
[1742056205739,2.13262264,607.53,606.28,13.65188058]
[1742056206545,2.51459126,607.42,606.28,13.65188058]
[1742056209044,5.5866977,607.49,606.28,13.65188058]
[1742056209248,0.32922894,607.48,606.28,13.65188058]
[1742056209745,0.28691093,607.47,606.28,13.65188058]
[1742056209944,0.32923978,607.46,606.28,13.65188058]
[1742056211954,4.73636514,607.46,606.28,13.65188058]
[1742056212153,2.13513039,607.45,606.28,13.65188058]
[1742056212654,0.28691566,607.44,606.28,13.65188058]
[1742056213256,0.28691566,607.44,606.28,11.80988058]
[1742056213455,0.28691566,607.44,606.28,10.21588058]
[1742056213655,6.82917141,607.44,606.28,10.21588058]
[1742056213856,2.13513039,607.43,606.28,10.21588058]
[1742056214354,2.46438643,607.43,606.28,10.21588058]
[1742056214550,0.32926146,607.42,606.28,10.21588058]
[1742056215056,6.87151721,607.42,606.28,8.51888058]
[1742056215256,2.13513039,607.41,606.28,8.51888058]
[1742056215556,2.13513039,607.41,606.28,6.55488058]
[1742056215953,2.13513039,607.41,606.28,4.92488058]
[1742056216254,5.20723683,607.41,606.28,4.92488058]
[1742056216458,4.40712536,607.4,606.28,2.73688058]
[1742056216656,2.13513039,607.39,606.28,2.53488058]
[1742056217950,2.13513039,607.39,606.28,0.32988058]
[1742056218352,5.20723683,607.39,606.28,0.32988058]
[1742056218654,4.40712536,607.38,606.28,0.32988058]
[1742056218849,2.13513039,607.37,606.28,0.32988058]
[1742056219659,5.20723683,607.37,606.28,0.32988058]
[1742056219860,4.40712536,607.36,606.28,0.32988058]
[1742056220258,6.53839024,607.35,606.28,0.32988058]
[1742056220456,6.53839024,607.34,606.28,0.32988058]
[1742056220758,6.53839024,607.33,606.28,0.32988058]
[1742056220954,6.53839024,607.32,606.28,0.32988058]
[1742056221160,9.61049668,607.31,606.28,0.32988058]
[1742056221361,6.53839024,607.3,606.28,0.32988058]
[1742056221656,2.13126488,607.29,606.28,0.32988058]
[1742056222058,3.07210644,607.31,606.28,0.32988058]
[1742056222260,0.32932652,607.3,605.76,2.481]
[1742056222461,0.32932652,607.3,605.77,0.33015831]
[1742056223761,0.28703517,607.29,605.77,0.33015831]
[1742056224059,0.32933737,607.28,605.77,0.33015831]
[1742056230272,2.51459126,606.91,605.77,0.33015831]